fUST/lending_fUST_20250924
["ID","MTS","AMOUNT","RATE_DAILY","PERIOD"]
[387405133,1758715856127,-1500.0,0.00020468,2]
[387405135,1758715856136,-500.0,0.00020468,2]
[387405137,1758715856145,-1000.0,0.00020468,2]
[387405139,1758715856154,-480.0,0.00020547,2]
[387405141,1758715856163,-480.0,0.00020547,2]
[387405143,1758715856172,-167.73493807,0.00020547,2]
[387405145,1758715856182,-480.0,0.00020547,2]
[387405147,1758715856191,-480.0,0.00020547,2]
[387405149,1758715856200,-480.0,0.00020547,2]
[387405151,1758715856210,-480.0,0.00020547,2]
[387405153,1758715856219,-223.08,0.00020547,2]
[387405155,1758715856228,-486.41213222,0.00020547,2]
[387405157,1758715856237,-480.0,0.00020547,2]
[387405159,1758715856246,-480.0,0.00020547,2]
[387405161,1758715856256,-480.0,0.00020547,2]
[387405163,1758715856265,-480.0,0.00020547,2]
[387405165,1758715856274,-480.0,0.00020547,2]
[387405167,1758715856283,-480.0,0.00020547,2]
[387405169,1758715856292,-480.0,0.00020547,2]
[387405171,1758715856302,-480.0,0.00020547,2]
[387405173,1758715856311,-590.6,0.00020547,2]
[387405175,1758715856320,-571.16,0.00020547,2]
[387405177,1758715856330,-480.0,0.00020547,2]
[387405179,1758715856339,-480.0,0.00020547,2]
[387405181,1758715856348,-488.3526184,0.00020547,2]
[387405183,1758715856358,-480.0,0.00020547,2]
[387405185,1758715856367,-480.0,0.00020547,2]
[387405187,1758715856377,-480.0,0.00020547,2]
[387405189,1758715856386,-480.0,0.00020547,2]
[387405191,1758715856395,-480.0,0.00020547,2]
[387405193,1758715856405,-480.0,0.00020547,2]
[387405195,1758715856414,-216.86577706,0.00020547,2]
[387405197,1758715856424,-480.0,0.00020547,2]
[387405199,1758715856434,-488.99202138,0.00020547,2]
[387405201,1758715856443,-480.0,0.00020547,2]
[387405203,1758715856454,-480.0,0.00020547,2]
[387405205,1758715856465,-480.0,0.00020547,2]
[387405207,1758715856476,-480.0,0.00020547,2]
[387405208,1758715856485,-669.56,0.00020547,2]
[387405210,1758715856495,-480.0,0.00020547,2]
[387405212,1758715856504,-480.0,0.00020547,2]
[387405214,1758715856513,-480.0,0.00020547,2]
[387405216,1758715856523,-480.0,0.00020547,2]
[387405218,1758715856532,-480.0,0.00020547,2]
[387405220,1758715856541,-480.0,0.00020547,2]
[387405222,1758715856550,-480.0,0.00020547,2]
[387405224,1758715856559,-480.0,0.00020547,2]
[387405226,1758715856569,-480.0,0.00020547,2]
[387405228,1758715856578,-480.0,0.00020547,2]
[387405230,1758715856587,-480.0,0.00020547,2]
[387405232,1758715856597,-480.0,0.00020547,2]
[387405234,1758715856606,-480.0,0.00020547,2]
[387405236,1758715856615,-580.6,0.00020547,2]
[387405238,1758715856629,-480.0,0.00020547,2]
[387405240,1758715856639,-480.0,0.00020547,2]
[387405242,1758715856649,-480.0,0.00020547,2]
[387405244,1758715856658,-480.0,0.00020547,2]
[387405246,1758715856670,-480.0,0.00020547,2]
[387405248,1758715856680,-480.0,0.00020547,2]
[387405250,1758715856689,-779.96,0.00020547,2]
[387405252,1758715856699,-486.0,0.00020547,2]
[387405254,1758715856707,-480.0,0.00020547,2]
[387405255,1758715856717,-480.0,0.00020547,2]
[387405257,1758715856726,-2072.44,0.00020547,2]
[387405259,1758715856736,-480.0,0.00020547,2]
[387405261,1758715856746,-502.2229877,0.00020547,2]
[387405263,1758715856756,-480.0,0.00020547,2]
[387405265,1758715856765,-480.0,0.00020547,2]
[387405267,1758715856774,-480.0,0.00020547,2]
[387405269,1758715856784,-480.0,0.00020547,2]
[387405271,1758715856794,-1211.98,0.00020547,2]
[387405273,1758715856803,-480.0,0.00020547,2]
[387405275,1758715856812,-674.06,0.00020547,2]
[387405277,1758715856822,-480.0,0.00020547,2]
[387405279,1758715856831,-555.91,0.00020547,2]
[387405281,1758715856841,-480.0,0.00020547,2]
[387405283,1758715856850,-718.86,0.00020547,2]
[387405285,1758715856860,-480.0,0.00020547,2]
[387405287,1758715856868,-720.53,0.00020547,2]
[387405289,1758715856877,-480.0,0.00020547,2]
[387405291,1758715856887,-480.0,0.00020547,2]
[387405292,1758715856896,-480.0,0.00020547,2]
[387405294,1758715856905,-498.36139886,0.00020547,2]
[387405296,1758715856915,-480.0,0.00020547,2]
[387405298,1758715856925,-480.0,0.00020547,2]
[387405300,1758715856934,-480.0,0.00020547,2]
[387405302,1758715856943,-480.0,0.00020547,2]
[387405304,1758715856953,-480.0,0.00020547,2]
[387405306,1758715856962,-480.0,0.00020547,2]
[387405308,1758715856971,-1021.1,0.00020547,2]
[387405310,1758715856981,-480.0,0.00020547,2]
[387405312,1758715856990,-480.0,0.00020547,2]
[387405314,1758715857000,-480.0,0.00020547,2]
[387405316,1758715857009,-538.17,0.00020547,2]
[387405324,1758715857071,-480.0,0.00020547,2]
[387405326,1758715857081,-480.0,0.00020547,2]
[387405328,1758715857091,-480.0,0.00020547,2]
[387405330,1758715857101,-480.0,0.00020547,2]
[387405332,1758715857110,-511.45,0.00020547,2]
[387405334,1758715857119,-480.0,0.00020547,2]
[387405336,1758715857128,-480.0,0.00020547,2]
[387405337,1758715857137,-480.0,0.00020547,2]
[387405339,1758715857147,-480.0,0.00020547,2]
[387405341,1758715857156,-480.0,0.00020547,2]
[387405343,1758715857165,-607.83247067,0.00020547,2]
[387405345,1758715857174,-480.0,0.00020547,2]
[387405347,1758715857183,-480.0,0.00020547,2]
[387405349,1758715857193,-1553.64,0.00020547,2]
[387405351,1758715857202,-524.43,0.00020547,2]
[387405353,1758715857210,-480.0,0.00020547,2]
[387405355,1758715857219,-480.0,0.00020547,2]
[387405357,1758715857228,-480.0,0.00020547,2]
[387405359,1758715857238,-727.4,0.00020547,2]
[387405361,1758715857248,-3126.73,0.00020547,2]
[387405363,1758715857257,-708.47,0.00020547,2]
[387405365,1758715857267,-480.0,0.00020547,2]
[387405367,1758715857276,-700.95,0.00020547,2]
[387405369,1758715857285,-480.0,0.00020547,2]
[387405371,1758715857294,-480.0,0.00020547,2]
[387405372,1758715857304,-480.0,0.00020547,2]
[387405374,1758715857313,-480.0,0.00020547,2]
[387405376,1758715857322,-480.0,0.00020547,2]
[387405378,1758715857332,-480.0,0.00020547,2]
[387405380,1758715857341,-480.0,0.00020547,2]
[387405382,1758715857352,-480.0,0.00020547,2]
[387405384,1758715857361,-1320.1,0.00020547,2]
[387405386,1758715857372,-480.0,0.00020547,2]
[387405388,1758715857381,-480.0,0.00020547,2]
[387405390,1758715857390,-195.7095193,0.00020547,2]
[387405392,1758715857399,-1000.0,0.00020568,2]
[387405394,1758715857408,-1203.95,0.00020606,2]
[387405396,1758715857417,-500.0,0.00020722,2]
[387405398,1758715857427,-500.0,0.00020783,2]
[387405400,1758715857436,-499.30927404,0.00020821,2]
[387405402,1758715857447,-480.0,0.00020821,2]
[387405404,1758715857457,-480.0,0.00020821,2]
[387405406,1758715857467,-572.31039267,0.00020821,2]
[387405408,1758715857476,-480.0,0.00020821,2]
[387405410,1758715857485,-480.0,0.00020821,2]
[387405412,1758715857495,-480.0,0.00020821,2]
[387405413,1758715857504,-480.0,0.00020821,2]
[387405415,1758715857514,-480.0,0.00020821,2]
[387405417,1758715857524,-480.0,0.00020821,2]
[387405419,1758715857533,-480.0,0.00020821,2]
[387405421,1758715857542,-480.0,0.00020821,2]
[387405423,1758715857552,-456.11559665,0.00020821,2]
[387405425,1758715857561,-571.16,0.00020821,2]
[387405427,1758715857571,-480.0,0.00020821,2]
[387405429,1758715857580,-480.0,0.00020821,2]
[387405431,1758715857590,-215.96398275,0.00020821,2]
[387405433,1758715857599,-480.0,0.00020821,2]
[387405435,1758715857608,-480.0,0.00020821,2]
[387405437,1758715857618,-480.0,0.00020821,2]
[387405439,1758715857631,-480.0,0.00020821,2]
[387405441,1758715857640,-480.0,0.00020821,2]
[387405443,1758715857649,-480.0,0.00020821,2]
[387405444,1758715857658,-480.0,0.00020821,2]
[387405446,1758715857668,-480.0,0.00020821,2]
[387405449,1758715857679,-669.56,0.00020821,2]
[387405450,1758715857689,-480.0,0.00020821,2]
[387405452,1758715857698,-480.0,0.00020821,2]
[387405454,1758715857708,-480.0,0.00020821,2]
[387405456,1758715857717,-480.0,0.00020821,2]
[387405458,1758715857727,-480.0,0.00020821,2]
[387405460,1758715857736,-480.0,0.00020821,2]
[387405462,1758715857746,-480.0,0.00020821,2]
[387405464,1758715857755,-480.0,0.00020821,2]
[387405466,1758715857764,-480.0,0.00020821,2]
[387405468,1758715857774,-480.0,0.00020821,2]
[387405470,1758715857783,-480.0,0.00020821,2]
[387405472,1758715857793,-580.6,0.00020821,2]
[387405474,1758715857802,-480.0,0.00020821,2]
[387405476,1758715857812,-532.23538846,0.00020821,2]
[387405478,1758715857821,-480.0,0.00020821,2]
[387405480,1758715857831,-480.0,0.00020821,2]
[387405481,1758715857840,-480.0,0.00020821,2]
[387405483,1758715857849,-480.0,0.00020821,2]
[387405485,1758715857858,-779.96,0.00020821,2]
[387405487,1758715857868,-486.0,0.00020821,2]
[387405489,1758715857877,-480.0,0.00020821,2]
[387405491,1758715857887,-480.0,0.00020821,2]
[387405493,1758715857896,-2072.44,0.00020821,2]
[387405495,1758715857906,-480.0,0.00020821,2]
[387405497,1758715857916,-480.0,0.00020821,2]
[387405499,1758715857925,-480.0,0.00020821,2]
[387405501,1758715857935,-480.0,0.00020821,2]
[387405503,1758715857945,-1211.98,0.00020821,2]
[387405510,1758715858009,-151.0,0.00020821,2]
[387405512,1758715858019,-480.0,0.00020821,2]
[387405514,1758715858028,-674.06,0.00020821,2]
[387405516,1758715858038,-480.0,0.00020821,2]
[387405518,1758715858047,-555.91,0.00020821,2]
[387405520,1758715858057,-480.0,0.00020821,2]
[387405522,1758715858067,-718.86,0.00020821,2]
[387405524,1758715858076,-480.0,0.00020821,2]
[387405526,1758715858085,-720.53,0.00020821,2]
[387405528,1758715858094,-480.0,0.00020821,2]
[387405530,1758715858104,-480.0,0.00020821,2]
[387405532,1758715858114,-151.0,0.00020821,2]
[387405534,1758715858123,-480.0,0.00020821,2]
[387405536,1758715858133,-480.0,0.00020821,2]
[387405538,1758715858142,-480.0,0.00020821,2]
[387405540,1758715858151,-480.0,0.00020821,2]
[387405542,1758715858161,-480.0,0.00020821,2]
[387405544,1758715858170,-480.0,0.00020821,2]
[387405546,1758715858180,-480.0,0.00020821,2]
[387405548,1758715858189,-151.0,0.00020821,2]
[387405549,1758715858198,-1021.1,0.00020821,2]
[387405551,1758715858208,-480.0,0.00020821,2]
[387405553,1758715858217,-480.0,0.00020821,2]
[387405555,1758715858227,-151.0,0.00020821,2]
[387405557,1758715858236,-480.0,0.00020821,2]
[387405559,1758715858246,-538.17,0.00020821,2]
[387405561,1758715858255,-480.0,0.00020821,2]
[387405563,1758715858264,-480.0,0.00020821,2]
[387405565,1758715858273,-480.0,0.00020821,2]
[387405567,1758715858283,-480.0,0.00020821,2]
[387405569,1758715858292,-511.45,0.00020821,2]
[387405571,1758715858301,-480.0,0.00020821,2]
[387405573,1758715858310,-151.0,0.00020821,2]
[387405575,1758715858319,-480.0,0.00020821,2]
[387405576,1758715858328,-151.0,0.00020821,2]
[387405578,1758715858338,-480.0,0.00020821,2]
[387405580,1758715858347,-480.0,0.00020821,2]
[387405582,1758715858356,-531.91605542,0.00020821,2]
[387405584,1758715858366,-480.0,0.00020821,2]
[387405586,1758715858375,-488.94093068,0.00020821,2]
[387405588,1758715858384,-151.0,0.00020821,2]
[387405590,1758715858393,-1553.64,0.00020821,2]
[387405592,1758715858402,-524.43,0.00020821,2]
[387405594,1758715858418,-480.0,0.00020821,2]
[387405597,1758715858436,-480.0,0.00020821,2]
[387405600,1758715858456,-151.0,0.00020821,2]
[387405603,1758715858475,-480.0,0.00020821,2]
[387405605,1758715858495,-153.926856,0.00020821,2]
[387405606,1758715858512,-727.4,0.00020821,2]
[387405607,1758715858530,-3126.73,0.00020821,2]
[387405608,1758715858544,-708.47,0.00020821,2]
[387405609,1758715858559,-480.0,0.00020821,2]
[387405610,1758715858578,-151.81455,0.00020821,2]
[387405611,1758715858599,-700.95,0.00020821,2]
[387405612,1758715858612,-480.0,0.00020821,2]
[387405613,1758715858631,-480.0,0.00020821,2]
[387405614,1758715858646,-480.0,0.00020821,2]
[387405615,1758715858662,-480.0,0.00020821,2]
[387405616,1758715858677,-480.0,0.00020821,2]
[387405617,1758715858692,-480.0,0.00020821,2]
[387405618,1758715858707,-480.0,0.00020821,2]
[387405619,1758715858722,-480.0,0.00020821,2]
[387405620,1758715858736,-151.0,0.00020821,2]
[387405621,1758715858750,-1320.1,0.00020821,2]
[387405622,1758715858764,-480.0,0.00020821,2]
[387405623,1758715858778,-480.0,0.00020821,2]
[387405625,1758715858792,-500.0,0.00020824,2]
[387405626,1758715858807,-500.0,0.00020824,2]
[387405628,1758715858820,-154.189102,0.00020824,2]
[387405631,1758715858834,-151.0,0.00020824,2]
[387405633,1758715858849,-500.0,0.00020954,2]
[387405636,1758715858863,-3013.75784437,0.00020972,2]
[387405639,1758715858879,-260.0,0.00020986,2]
[387405641,1758715858893,-158.38,0.00020996,2]
[387405643,1758715858907,-717.0,0.00020999,2]
[387405646,1758715858922,-3000.0,0.00021,2]
[387405648,1758715858936,-92640.31,0.00021,12]
[387405651,1758715858950,-155.6041,0.00021,2]
[387405653,1758715858965,-279.534909,0.00021,2]
[387405656,1758715858979,-151.0,0.00021,2]
[387405658,1758715858994,-151.0,0.00021,2]
[387405661,1758715859006,-3000.0,0.0002101,2]
[387405663,1758715859016,-385.48293974,0.00021016,2]
[387405665,1758715859025,-3000.0,0.0002102,2]
[387405667,1758715859035,-3000.0,0.0002103,2]
[387405679,1758715859140,-3000.0,0.0002104,2]
[387405681,1758715859150,-3000.0,0.0002105,2]
[387405683,1758715859159,-3000.0,0.0002106,2]
[387405685,1758715859168,-5045.454478,0.0002107,2]
[387405687,1758715859177,-480.0,0.00021095,2]
[387405689,1758715859187,-480.0,0.00021095,2]
[387405691,1758715859196,-480.0,0.00021095,2]
[387405693,1758715859206,-480.0,0.00021095,2]
[387405695,1758715859215,-480.0,0.00021095,2]
[387405697,1758715859225,-480.0,0.00021095,2]
[387405699,1758715859234,-480.0,0.00021095,2]
[387405701,1758715859244,-480.0,0.00021095,2]
[387405703,1758715859253,-480.0,0.00021095,2]
[387405705,1758715859262,-571.16,0.00021095,2]
[387405707,1758715859271,-480.0,0.00021095,2]
[387405709,1758715859281,-480.0,0.00021095,2]
[387405711,1758715859290,-480.0,0.00021095,2]
[387405713,1758715859300,-480.0,0.00021095,2]
[387405715,1758715859309,-357.24425744,0.00021095,2]
[387405717,1758715859319,-480.0,0.00021095,2]
[387405719,1758715859328,-480.0,0.00021095,2]
[387405721,1758715859337,-480.0,0.00021095,2]
[387405723,1758715859346,-480.0,0.00021095,2]
[387405725,1758715859356,-480.0,0.00021095,2]
[387405727,1758715859365,-669.56,0.00021095,2]
[387405729,1758715859374,-480.0,0.00021095,2]
[387405731,1758715859383,-480.0,0.00021095,2]
[387405733,1758715859392,-480.0,0.00021095,2]
[387405735,1758715859402,-480.0,0.00021095,2]
[387405737,1758715859411,-480.0,0.00021095,2]
[387405739,1758715859420,-480.0,0.00021095,2]
[387405741,1758715859429,-480.0,0.00021095,2]
[387405743,1758715859438,-480.0,0.00021095,2]
[387405745,1758715859448,-53.78083551,0.00021095,2]
[387405756,1758715859548,-426.21916449,0.00021095,2]
[387405758,1758715859558,-580.6,0.00021095,2]
[387405760,1758715859567,-480.0,0.00021095,2]
[387405762,1758715859577,-480.0,0.00021095,2]
[387405764,1758715859586,-480.0,0.00021095,2]
[387405766,1758715859595,-480.0,0.00021095,2]
[387405768,1758715859605,-480.0,0.00021095,2]
[387405770,1758715859614,-779.96,0.00021095,2]
[387405772,1758715859626,-486.0,0.00021095,2]
[387405774,1758715859635,-480.0,0.00021095,2]
[387405776,1758715859645,-2072.44,0.00021095,2]
[387405778,1758715859654,-480.0,0.00021095,2]
[387405780,1758715859665,-480.0,0.00021095,2]
[387405782,1758715859674,-431.20842233,0.00021095,2]
[387405950,1758716007416,259.67,0.00023498,30]
[387405952,1758716096477,273.4,0.00023575,30]
[387405953,1758716185250,271.91,0.00023604,30]
[387405978,1758716271723,270.42,0.00023641,30]
[387405979,1758716359535,268.95,0.00023607,30]
[387406016,1758716446620,267.48,0.0002358,30]
[387406017,1758716534545,266.02,0.00023193,30]
[387406084,1758716621750,264.57,0.00023375,30]
[387406086,1758716787862,263.13,0.00023497,30]
[387406087,1758716812125,-239.68913751,0.00018155,2]
[387406088,1758716876695,261.69,0.00023539,30]
[387406090,1758716926940,13047.0440967,0.00029479,120]
[387406091,1758716965750,260.27,0.0002356,30]
[387406107,1758717032227,-1000.0,0.00018072,2]
[387406108,1758717032237,-2.30017719,0.00018155,2]
[387406109,1758717032246,-230.680818,0.00018168,2]
[387406110,1758717032256,-155.45188366,0.00018484,3]
[387406111,1758717032268,-1023.19047742,0.00018484,3]
[387406112,1758717032279,-480.0,0.00018484,3]
[387406113,1758717032504,-507.73545528,0.00018484,3]
[387406114,1758717032527,-518.55221544,0.00018484,3]
[387406115,1758717032537,-275.00225929,0.00018506,2]
[387406116,1758717032546,-300.0,0.00019077,2]
[387406117,1758717032556,-3274.67582049,0.00019078,2]
[387406118,1758717032566,-767.0,0.00019146,2]
[387406119,1758717032575,-3274.67582046,0.00019147,2]
[387406120,1758717032585,-932.66,0.00019168,3]
[387406121,1758717032594,-466.33,0.00019168,3]
[387406122,1758717032604,-233.16,0.00019168,3]
[387406123,1758717032613,-699.51,0.00019168,3]
[387406124,1758717032623,-1000.0,0.00019177,2]
[387406125,1758717032632,-1000.0,0.00019177,2]
[387406126,1758717032641,-334.0,0.00019177,2]
[387406127,1758717032650,-500.0,0.00019177,2]
[387406128,1758717032660,-500.0,0.00019177,2]
[387406129,1758717032670,-297.88590133,0.00019177,2]
[387406130,1758717032680,-500.0,0.00019177,2]
[387406131,1758717032689,-221.96463203,0.00019177,2]
[387406132,1758717032699,-500.0,0.00019177,2]
[387406133,1758717032709,-500.0,0.00019177,2]
[387406134,1758717032718,-500.0,0.00019177,2]
[387406135,1758717032727,-500.0,0.00019177,2]
[387406136,1758717032737,-244.38335096,0.00019177,2]
[387406175,1758717038361,-255.61664904,0.00019177,2]
[387406176,1758717038371,-500.0,0.00019177,2]
[387406177,1758717038381,-500.0,0.00019177,2]
[387406178,1758717038390,-500.0,0.00019177,2]
[387406179,1758717038399,-500.0,0.00019177,2]
[387406180,1758717038408,-500.0,0.00019177,2]
[387406181,1758717038417,-500.0,0.00019177,2]
[387406182,1758717038425,-500.0,0.00019177,2]
[387406183,1758717038434,-500.0,0.00019177,2]
[387406184,1758717038443,-500.0,0.00019177,2]
[387406185,1758717038452,-500.0,0.00019177,2]
[387406186,1758717038462,-500.0,0.00019177,2]
[387406187,1758717038471,-500.0,0.00019177,2]
[387406188,1758717038480,-500.0,0.00019177,2]
[387406189,1758717038489,-163.15571448,0.00019177,2]
[387406191,1758717038498,-500.0,0.00019177,2]
[387406192,1758717038507,-500.0,0.00019177,2]
[387406194,1758717038516,-500.0,0.00019177,2]
[387406195,1758717038524,-500.0,0.00019177,2]
[387406197,1758717038534,-319.66393421,0.00019177,2]
[387406199,1758717038543,-230.73149031,0.00019177,2]
[387406201,1758717038553,-206.16924309,0.00019178,2]
[387406202,1758717038562,-480.0,0.00019178,2]
[387406204,1758717038571,-480.0,0.00019178,2]
[387406206,1758717038580,-480.0,0.00019178,2]
[387406207,1758717038589,-521.73427681,0.00019178,3]
[387406209,1758717038598,-480.0,0.00019178,2]
[387406211,1758717038607,-480.0,0.00019178,2]
[387406212,1758717038617,-480.0,0.00019178,2]
[387406213,1758717038626,-481.4539951,0.00019178,2]
[387406214,1758717038635,-481.27590948,0.00019178,2]
[387406215,1758717038644,-480.0,0.00019178,2]
[387406216,1758717038654,-480.0,0.00019178,2]
[387406218,1758717038663,-480.0,0.00019178,2]
[387406219,1758717038672,-340.00303229,0.00019178,2]
[387406221,1758717038681,-480.0,0.00019178,2]
[387406222,1758717038690,-480.0,0.00019178,2]
[387406223,1758717038699,-485.92170495,0.00019178,2]
[387406224,1758717038708,-483.74273369,0.00019178,2]
[387406225,1758717038719,-480.0,0.00019178,2]
[387406226,1758717038727,-482.52678512,0.00019178,2]
[387406227,1758717038736,-480.0,0.00019178,2]
[387406228,1758717038745,-480.0,0.00019178,2]
[387406229,1758717038754,-480.0,0.00019178,2]
[387406230,1758717038764,-213.32273956,0.00019178,2]
[387406231,1758717038773,-480.0,0.00019178,2]
[387406232,1758717038782,-480.0,0.00019178,2]
[387406233,1758717038791,-480.0,0.00019178,2]
[387406234,1758717038800,-480.0,0.00019178,2]
[387406235,1758717038810,-480.0,0.00019178,2]
[387406236,1758717038819,-485.27186293,0.00019178,2]
[387406237,1758717038828,-480.0,0.00019178,2]
[387406238,1758717038838,-480.0,0.00019178,2]
[387406239,1758717038847,-480.0,0.00019178,2]
[387406240,1758717038857,-480.0,0.00019178,2]
[387406241,1758717038866,-480.0,0.00019178,2]
[387406242,1758717038875,-480.0,0.00019178,2]
[387406243,1758717038885,-480.0,0.00019178,2]
[387406244,1758717038894,-482.70927707,0.00019178,2]
[387406245,1758717038903,-480.0,0.00019178,2]
[387406246,1758717038912,-480.0,0.00019178,2]
[387406247,1758717038921,-480.0,0.00019178,2]
[387406248,1758717038931,-480.0,0.00019178,2]
[387406249,1758717038941,-483.56060294,0.00019178,2]
[387406250,1758717038950,-480.0,0.00019178,2]
[387406251,1758717038960,-480.0,0.00019178,2]
[387406252,1758717038969,-480.0,0.00019178,2]
[387406253,1758717038979,-370.52478656,0.00019178,2]
[387406254,1758717038988,-480.0,0.00019178,2]
[387406255,1758717038997,-480.0,0.00019178,2]
[387406256,1758717039007,-480.0,0.00019178,2]
[387406257,1758717039016,-480.0,0.00019178,2]
[387406258,1758717039025,-483.75388732,0.00019178,2]
[387406259,1758717039034,-480.0,0.00019178,2]
[387406260,1758717039044,-480.0,0.00019178,2]
[387406261,1758717039053,-480.0,0.00019178,2]
[387406262,1758717039068,-480.0,0.00019178,2]
[387406263,1758717039077,-480.0,0.00019178,2]
[387406264,1758717039087,-480.0,0.00019178,2]
[387406265,1758717039096,-480.0,0.00019178,2]
[387406266,1758717039106,-480.0,0.00019178,2]
[387406267,1758717039115,-480.0,0.00019178,2]
[387406268,1758717039124,-480.0,0.00019178,2]
[387406269,1758717039134,-481.41222381,0.00019178,2]
[387406270,1758717039144,-480.0,0.00019178,2]
[387406271,1758717039153,-480.0,0.00019178,2]
[387406272,1758717039163,-480.0,0.00019178,2]
[387406273,1758717039172,-481.54287733,0.00019178,2]
[387406274,1758717039182,-480.0,0.00019178,2]
[387406275,1758717039191,-480.0,0.00019178,2]
[387406276,1758717039200,-480.0,0.00019178,2]
[387406277,1758717039210,-480.0,0.00019178,2]
[387406278,1758717039220,-480.0,0.00019178,2]
[387406279,1758717039230,-480.0,0.00019178,2]
[387406280,1758717039239,-480.0,0.00019178,2]
[387406281,1758717039248,-480.0,0.00019178,2]
[387406282,1758717039257,-480.0,0.00019178,2]
[387406283,1758717039266,-484.71705734,0.00019178,2]
[387406284,1758717039276,-281.32815379,0.00019178,2]
[387406285,1758717039285,-480.0,0.00019178,2]
[387406286,1758717039294,-480.0,0.00019178,2]
[387406287,1758717039304,-480.0,0.00019178,2]
[387406288,1758717039313,-480.0,0.00019178,2]
[387406289,1758717039322,-483.18472863,0.00019178,2]
[387406290,1758717039331,-480.0,0.00019178,2]
[387406291,1758717039341,-484.19756235,0.00019178,2]
[387406292,1758717039350,-482.68060887,0.00019178,2]
[387406293,1758717039359,-599.5867322,0.00019178,2]
[387406294,1758717039369,-317.42764413,0.00019178,2]
[387406295,1758717039378,-480.0,0.00019178,2]
[387406296,1758717039387,-482.16485731,0.00019178,2]
[387406297,1758717039398,-480.0,0.00019178,2]
[387406298,1758717039407,-480.0,0.00019178,2]
[387406299,1758717039416,-480.0,0.00019178,2]
[387406300,1758717039425,-480.0,0.00019178,2]
[387406301,1758717039434,-482.65202307,0.00019178,2]
[387406302,1758717039443,-480.0,0.00019178,2]
[387406303,1758717039452,-206.71719492,0.00019178,2]
[387406304,1758717039462,-349.92387686,0.00019178,2]
[387406305,1758717039471,-480.0,0.00019178,2]
[387406306,1758717039480,-482.07266071,0.00019178,2]
[387406307,1758717039489,-480.0,0.00019178,2]
[387406308,1758717039499,-481.22940564,0.00019178,2]
[387406309,1758717039510,-480.0,0.00019178,2]
[387406310,1758717039520,-480.0,0.00019178,2]
[387406311,1758717039529,-480.0,0.00019178,2]
[387406312,1758717039538,-483.86520322,0.00019178,2]
[387406313,1758717039547,-480.0,0.00019178,2]
[387406314,1758717039557,-480.0,0.00019178,2]
[387406315,1758717039566,-480.0,0.00019178,2]
[387406316,1758717039575,-500.0,0.00019178,2]
[387406317,1758717039585,-500.0,0.00019178,2]
[387406318,1758717039594,-500.0,0.00019178,2]
[387406319,1758717039603,-480.0,0.00019178,2]
[387406320,1758717039612,-480.0,0.00019178,2]
[387406321,1758717039621,-480.0,0.00019178,2]
[387406322,1758717039631,-252.98244034,0.00019178,2]